lending/lending_fUSD_20241120
["ID","MTS","AMOUNT","RATE_DAILY","PERIOD"]
[342782916,1732140722591,-500.0,0.0005589,120]
[342782917,1732140722601,-500.0,0.0005589,120]
[342782918,1732140722612,-3077.78,0.0005589,120]
[342782919,1732140722622,-500.0,0.0005589,120]
[342782920,1732140722631,-4393.1,0.0005589,120]
[342782921,1732140722641,-535.35,0.0005589,120]
[342782922,1732140722651,-656.88,0.0005589,120]
[342782923,1732140722661,-1967.61,0.0005589,120]
[342782924,1732140722671,-500.0,0.0005589,120]
[342782925,1732140722681,-500.0,0.0005589,120]
[342782926,1732140722691,-1550.26,0.0005589,120]
[342782927,1732140722701,-500.0,0.0005589,120]
[342782928,1732140722712,-725.78,0.0005589,120]
[342782929,1732140722723,-996.23,0.0005589,120]
[342782930,1732140722734,-5411.3,0.0005589,120]
[342782931,1732140722745,-500.0,0.0005589,120]
[342782932,1732140722754,-500.0,0.0005589,120]
[342782933,1732140722764,-559.06,0.0005589,120]
[342782934,1732140722773,-1127.77,0.0005589,120]
[342782935,1732140722783,-570.31,0.0005589,120]
[342782936,1732140722792,-500.0,0.0005589,120]
[342782937,1732140722802,-7043.87,0.0005589,120]
[342782938,1732140722813,-580.25,0.0005589,120]
[342782939,1732140722823,-500.0,0.0005589,120]
[342782940,1732140722832,-500.0,0.0005589,120]
[342782941,1732140722842,-604.62,0.0005589,120]
[342782942,1732140722852,-8863.78,0.0005589,120]
[342782943,1732140722861,-353.82980625,0.0005589,120]
[342782944,1732140722871,-2040.5,0.0005589,120]
[342782945,1732140722880,-1500.0,0.0005589,120]
[342782946,1732140722890,-500.0,0.0005589,120]
[342782947,1732140722900,-2305.42,0.0005589,120]
[342782948,1732140722910,-500.0,0.0005589,120]
[342782949,1732140722921,-762.69,0.0005589,120]
[342782950,1732140722937,-1604.28,0.0005589,120]
[342782951,1732140722948,-713.08,0.0005589,120]
[342782952,1732140722958,-500.0,0.0005589,120]
[342782953,1732140722967,-500.0,0.0005589,120]
[342782954,1732140722977,-500.0,0.0005589,120]
[342782955,1732140722987,-500.0,0.0005589,120]
[342782956,1732140722996,-1101.03,0.0005589,120]
[342782957,1732140723006,-500.0,0.0005589,120]
[342782958,1732140723015,-1320.75,0.0005589,120]
[342782959,1732140723025,-500.0,0.0005589,120]
[342782960,1732140723035,-1100.57,0.0005589,120]
[342782961,1732140723044,-500.0,0.0005589,120]
[342782962,1732140723054,-500.0,0.0005589,120]
[342782963,1732140723063,-500.0,0.0005589,120]
[342782964,1732140723073,-5594.76,0.0005589,120]
[342782965,1732140723084,-500.0,0.0005589,120]
[342782966,1732140723094,-561.2,0.0005589,120]
[342782967,1732140723105,-500.0,0.0005589,120]
[342782968,1732140723115,-918.38,0.0005589,120]
[342782969,1732140723125,-516.99350448,0.0005589,120]
[342782970,1732140723138,-3670.68,0.0005589,120]
[342782971,1732140723149,-500.0,0.0005589,120]
[342782972,1732140723159,-500.0,0.0005589,120]
[342782973,1732140723175,-157.44,0.0005589,2]
[342782974,1732140723186,-150.0,0.00055989,120]
[342782975,1732140723196,-50000.0,0.00056,56]
[342782976,1732140723205,-50000.0,0.00056,66]
[342782977,1732140723216,-50000.0,0.00056,36]
[342782978,1732140723225,-580.0,0.00056,14]
[342782979,1732140723235,-1085.43299691,0.00056,120]
[342782980,1732140723245,-750.0,0.00056,120]
[342782981,1732140723255,-20000.0,0.00056,120]
[342782982,1732140723265,-450.0,0.00056,120]
[342782983,1732140723275,-470.99401065,0.00056,120]
[342782984,1732140723284,-900.0,0.00056,57]
[342782985,1732140723295,-50000.0,0.00056,120]
[342782986,1732140723305,-342.97,0.00056147,2]
[342782987,1732140723315,-500.0,0.00056164,7]
[342782988,1732140723325,-597.23,0.00056164,120]
[342782989,1732140723335,-500.0,0.00056164,120]
[342782990,1732140723591,-500.0,0.00056164,120]
[342782991,1732140723613,-500.0,0.00056164,120]
[342782992,1732140723624,-500.0,0.00056164,120]
[342782993,1732140723634,-500.0,0.00056164,120]
[342782994,1732140723644,-500.0,0.00056164,120]
[342782995,1732140723654,-500.0,0.00056164,120]
[342782996,1732140723664,-500.0,0.00056164,120]
[342782997,1732140723679,-500.0,0.00056164,120]
[342782998,1732140723689,-500.0,0.00056164,120]
[342782999,1732140723700,-500.0,0.00056164,120]
[342783000,1732140723710,-500.0,0.00056164,120]
[342783001,1732140723720,-265.84,0.00056164,120]
[342783002,1732140723731,-500.0,0.00056164,120]
[342783003,1732140723740,-500.0,0.00056164,120]
[342783004,1732140723751,-500.0,0.00056164,120]
[342783005,1732140723760,-210.928221,0.00056164,120]
[342783006,1732140723770,-155.055593,0.00056164,120]
[342783007,1732140723779,-260.413462,0.00056164,120]
[342783008,1732140723788,-500.0,0.00056164,120]
[342783009,1732140723798,-789.82,0.00056164,120]
[342783010,1732140723808,-907.52,0.00056164,120]
[342783011,1732140723818,-676.32,0.00056164,120]
[342783012,1732140723827,-500.0,0.00056164,120]
[342783013,1732140723837,-500.0,0.00056164,120]
[342783014,1732140723846,-690.77,0.00056164,120]
[342783015,1732140723855,-500.0,0.00056164,120]
[342783016,1732140723865,-500.0,0.00056164,120]
[342783017,1732140723874,-500.0,0.00056164,120]
[342783018,1732140723884,-500.0,0.00056164,120]
[342783019,1732140723894,-500.0,0.00056164,120]
[342783020,1732140723903,-500.0,0.00056164,120]
[342783021,1732140723912,-500.0,0.00056164,120]
[342783022,1732140723926,-500.0,0.00056164,120]
[342783023,1732140723936,-500.0,0.00056164,120]
[342783024,1732140723946,-500.0,0.00056164,30]
[342783025,1732140723956,-500.0,0.00056164,120]
[342783026,1732140723966,-500.0,0.00056164,120]
[342783027,1732140723976,-500.0,0.00056164,120]
[342783028,1732140723985,-802.91,0.00056164,120]
[342783029,1732140723995,-500.0,0.00056164,120]
[342783030,1732140724005,-1078.99,0.00056164,120]
[342783031,1732140724015,-500.0,0.00056164,120]
[342783032,1732140724024,-1196.86,0.00056164,120]
[342783033,1732140724034,-1553.66,0.00056164,120]
[342783034,1732140724044,-500.0,0.00056164,120]
[342783035,1732140724053,-500.0,0.00056164,120]
[342783036,1732140724063,-500.0,0.00056164,120]
[342783037,1732140724072,-500.0,0.00056164,120]
[342783038,1732140724083,-1468.02,0.00056164,120]
[342783039,1732140724092,-500.0,0.00056164,120]
[342783040,1732140724102,-500.0,0.00056164,120]
[342783041,1732140724111,-160.98246696,0.00056164,120]
[342783042,1732140724120,-500.0,0.00056164,120]
[342783043,1732140724130,-500.0,0.00056164,120]
[342783044,1732140724140,-1204.33,0.00056164,120]
[342783045,1732140724150,-500.0,0.00056164,120]
[342783046,1732140724160,-689.54,0.00056164,120]
[342783047,1732140724172,-500.0,0.00056164,120]
[342783048,1732140724182,-500.0,0.00056164,120]
[342783049,1732140724191,-500.0,0.00056164,120]
[342783050,1732140724201,-500.0,0.00056164,120]
[342783051,1732140724210,-500.0,0.00056164,120]
[342783052,1732140724221,-500.0,0.00056164,120]
[342783053,1732140724231,-334.9197627,0.00056164,120]
[342783054,1732140724240,-500.0,0.00056164,7]
[342783055,1732140724250,-577.93845399,0.00056164,120]
[342783056,1732140724259,-3362.7,0.00056164,120]
[342783057,1732140724269,-500.0,0.00056164,120]
[342783058,1732140724279,-500.0,0.00056164,120]
[342783059,1732140724288,-500.0,0.00056164,120]
[342783060,1732140724298,-150.0,0.00056164,120]
[342783061,1732140724307,-2907.27,0.00056164,120]
[342783062,1732140724317,-500.0,0.00056164,120]
[342783063,1732140724327,-1034.08,0.00056164,120]
[342783064,1732140724337,-500.0,0.00056164,120]
[342783065,1732140724347,-500.0,0.00056164,120]
[342783066,1732140724357,-500.0,0.00056164,120]
[342783067,1732140724366,-500.0,0.00056164,120]
[342783068,1732140724375,-500.0,0.00056164,120]
[342783069,1732140724385,-500.0,0.00056164,120]
[342783070,1732140724394,-500.0,0.00056164,120]
[342783071,1732140724404,-5000.0,0.00056164,120]
[342783072,1732140724413,-500.0,0.00056164,120]
[342783073,1732140724424,-500.0,0.00056164,120]
[342783074,1732140724434,-1141.42,0.00056164,120]
[342783075,1732140724444,-577.45,0.00056164,120]
[342783076,1732140724454,-691.51,0.00056164,120]
[342783077,1732140724463,-500.0,0.00056164,120]
[342783078,1732140724473,-500.0,0.00056164,120]
[342783079,1732140724482,-1067.52,0.00056164,120]
[342783080,1732140724492,-500.0,0.00056164,120]
[342783081,1732140724502,-500.0,0.00056164,120]
[342783082,1732140724512,-1047.06,0.00056164,120]
[342783083,1732140724521,-500.0,0.00056164,120]
[342783084,1732140724531,-500.0,0.00056164,2]
[342783085,1732140724540,-1588.94,0.00056164,120]
[342783086,1732140724550,-500.0,0.00056164,120]
[342783087,1732140724559,-500.0,0.00056164,14]
[342783088,1732140724568,-500.0,0.00056164,120]
[342783089,1732140724577,-826.46,0.00056164,120]
[342783090,1732140724587,-500.0,0.00056164,120]
[342783091,1732140724597,-500.0,0.00056164,120]
[342783092,1732140724607,-883.47,0.00056164,120]
[342783093,1732140724616,-1125.72,0.00056164,120]
[342783094,1732140724627,-500.0,0.00056164,120]
[342783095,1732140724636,-500.0,0.00056164,120]
[342783096,1732140724646,-202.397127,0.00056164,120]
[342783097,1732140724655,-500.0,0.00056164,120]
[342783098,1732140724665,-500.0,0.00056164,120]
[342783099,1732140724676,-500.0,0.00056164,120]
[342783100,1732140724685,-1198.91,0.00056164,120]
[342783101,1732140724695,-1116.01,0.00056164,120]
[342783102,1732140724704,-500.0,0.00056164,120]
[342783103,1732140724714,-185.11744082,0.00056164,120]
[342783104,1732140724723,-500.0,0.00056164,120]
[342783105,1732140724734,-500.0,0.00056164,120]
[342783106,1732140724743,-500.0,0.00056164,120]
[342783107,1732140724753,-1410.51,0.00056164,120]
[342783108,1732140724763,-500.0,0.00056164,120]
[342783109,1732140724772,-500.0,0.00056164,120]
[342783110,1732140724781,-508.72,0.00056164,120]
[342783111,1732140724791,-500.0,0.00056164,120]
[342783112,1732140724800,-500.0,0.00056164,120]
[342783113,1732140724809,-501.02,0.00056164,120]
[342783114,1732140724819,-151.0,0.00056164,120]
[342783115,1732140724828,-500.0,0.00056164,120]
[342783116,1732140724837,-854.5,0.00056164,120]
[342783117,1732140724847,-151.0,0.00056164,120]
[342783118,1732140724856,-500.0,0.00056164,120]
[342783119,1732140724865,-151.0,0.00056164,120]
[342783120,1732140724875,-500.0,0.00056164,120]
[342783121,1732140724886,-500.0,0.00056164,120]
[342783122,1732140724897,-923.86,0.00056164,120]
[342783123,1732140724907,-500.0,0.00056164,60]
[342783124,1732140724916,-1843.46,0.00056164,120]
[342783125,1732140724927,-151.0,0.00056164,120]
[342783126,1732140724936,-810.6,0.00056164,120]
[342783127,1732140724945,-500.0,0.00056164,120]
[342783128,1732140724956,-909.22,0.00056164,120]
[342783129,1732140724965,-500.0,0.00056164,120]
[342783130,1732140724976,-500.0,0.00056164,120]
[342783131,1732140724986,-500.0,0.00056164,120]
[342783132,1732140724995,-533.52,0.00056164,120]
[342783133,1732140725004,-500.0,0.00056164,120]
[342783134,1732140725015,-500.0,0.00056164,120]
[342783135,1732140725024,-2415.23,0.00056164,120]
[342783136,1732140725033,-500.0,0.00056164,120]
[342783137,1732140725043,-972.8,0.00056164,120]
[342783138,1732140725053,-500.0,0.00056164,120]
[342783139,1732140725063,-1624.46,0.00056164,120]
[342783140,1732140725073,-500.0,0.00056164,120]
[342783141,1732140725085,-500.0,0.00056164,120]
[342783142,1732140725095,-530.46,0.00056164,120]
[342783143,1732140725105,-150.0,0.00056164,120]
[342783144,1732140725115,-306.40262049,0.00056164,120]
[342783145,1732140725125,-500.0,0.00056164,120]
[342783146,1732140725137,-730.89,0.00056164,120]
[342783147,1732140725147,-500.0,0.00056164,60]
[342783148,1732140725157,-500.0,0.00056164,120]
[342783149,1732140725167,-151.0,0.00056164,120]
[342783150,1732140725181,-500.0,0.00056164,120]
[342783151,1732140725190,-500.0,0.00056164,120]
[342783152,1732140725199,-615.39,0.00056164,120]
[342783153,1732140725208,-500.0,0.00056164,120]
[342783154,1732140725218,-500.0,0.00056164,120]
[342783155,1732140725227,-500.0,0.00056164,120]
[342783156,1732140725237,-500.0,0.00056164,120]
[342783157,1732140725246,-515.66,0.00056164,120]
[342783158,1732140725255,-500.0,0.00056164,120]
[342783159,1732140725264,-500.0,0.00056164,120]
[342783160,1732140725274,-783.6,0.00056164,120]
[342783161,1732140725283,-1852.69,0.00056164,120]
[342783162,1732140725292,-713.08,0.00056164,120]
[342783163,1732140725301,-524.36,0.00056164,120]
[342783164,1732140725311,-500.0,0.00056164,120]
[342783165,1732140725321,-500.0,0.00056164,120]
[342783166,1732140725330,-500.0,0.00056164,120]
[342783167,1732140725339,-500.0,0.00056164,120]
[342783168,1732140725348,-500.0,0.00056164,120]
[342783169,1732140725358,-500.0,0.00056164,120]
[342783170,1732140725368,-729.05,0.00056164,120]
[342783171,1732140725377,-500.0,0.00056164,120]
[342783172,1732140725387,-500.0,0.00056164,120]
[342783173,1732140725396,-2435.5,0.00056164,120]
[342783174,1732140725406,-500.0,0.00056164,120]
[342783175,1732140725416,-521.8,0.00056164,120]
[342783176,1732140725427,-642.48,0.00056164,120]
[342783177,1732140725437,-849.85,0.00056164,120]
[342783178,1732140725446,-627.45,0.00056164,120]
[342783179,1732140725456,-500.0,0.00056164,120]
[342783180,1732140725466,-742.62,0.00056164,120]
[342783181,1732140725475,-500.0,0.00056164,120]
[342783182,1732140725485,-500.0,0.00056164,120]
[342783183,1732140725495,-858.26,0.00056164,120]
[342783184,1732140725505,-500.0,0.00056164,120]
[342783185,1732140725515,-503.51,0.00056164,120]
[342783186,1732140725525,-500.0,0.00056164,120]
[342783187,1732140725535,-2800.08,0.00056164,120]
[342783188,1732140725545,-500.0,0.00056164,120]
[342783189,1732140725555,-500.0,0.00056164,120]
[342783190,1732140725565,-500.0,0.00056164,120]
[342783191,1732140725575,-563.45,0.00056164,120]
[342783192,1732140725585,-500.0,0.00056164,120]
[342783193,1732140725595,-500.0,0.00056164,120]
[342783194,1732140725605,-500.0,0.00056164,120]
[342783195,1732140725614,-1104.08,0.00056164,120]
[342783196,1732140725624,-500.0,0.00056164,120]
[342783197,1732140725634,-500.0,0.00056164,120]
[342783198,1732140725644,-1222.85,0.00056164,120]
[342783199,1732140725653,-500.0,0.00056164,120]
[342783200,1732140725663,-560.03726615,0.00056164,120]
[342783201,1732140725675,-500.0,0.00056164,120]
[342783202,1732140725692,-151.0,0.00056164,120]
[342783203,1732140725702,-1021.61,0.00056164,120]
[342783204,1732140725713,-578.33,0.00056164,120]
[342783205,1732140725723,-500.0,0.00056164,120]
[342783206,1732140725733,-500.0,0.00056164,120]
[342783207,1732140725742,-1661.17,0.00056164,120]
[342783208,1732140725752,-500.0,0.00056164,120]
[342783209,1732140725762,-157.497523,0.00056164,120]
[342783210,1732140725771,-352.17566991,0.00056164,120]
[342783211,1732140725782,-800.14,0.00056164,120]
[342783212,1732140725792,-500.0,0.00056164,120]
[342783213,1732140725801,-157.497523,0.00056164,120]
[342783214,1732140725811,-500.0,0.00056164,120]
[342783215,1732140725820,-1090.19,0.00056164,120]
[342783216,1732140725831,-1054.3,0.00056164,120]
[342783217,1732140725841,-500.0,0.00056164,120]
[342783218,1732140725851,-1209.25,0.00056164,120]
[342783219,1732140725861,-1127.18,0.00056164,120]
[342783220,1732140725870,-500.0,0.00056164,120]
[342783221,1732140725880,-500.0,0.00056164,120]
[342783222,1732140725889,-500.0,0.00056164,120]
[342783223,1732140725899,-500.0,0.00056164,120]
[342783224,1732140725909,-208.735244,0.00056164,120]
[342783225,1732140725918,-500.0,0.00056164,120]
[342783226,1732140725935,-1267.34,0.00056164,120]
[342783227,1732140726054,-500.0,0.00056164,120]
[342783228,1732140726065,-2432.38,0.00056164,7]
[342783229,1732140726074,-500.0,0.00056164,120]
[342783230,1732140726085,-500.0,0.00056164,120]
[342783231,1732140726094,-500.0,0.00056164,120]
[342783232,1732140726104,-1560.72,0.00056164,120]
[342783233,1732140726113,-500.0,0.00056164,120]
[342783234,1732140726123,-655.09,0.00056164,120]
[342783235,1732140726132,-1047.78,0.00056164,120]
[342783236,1732140726145,-500.0,0.00056164,120]
[342783237,1732140726154,-500.0,0.00056164,120]
[342783238,1732140726165,-349.533809,0.00056164,120]
[342783239,1732140726182,-500.0,0.00056164,120]
[342783240,1732140726192,-208.735244,0.00056164,120]
[342783241,1732140726202,-1376.36,0.00056164,120]
[342783242,1732140726211,-758.47,0.00056164,120]
[342783243,1732140726223,-349.533809,0.00056164,120]
[342783244,1732140726232,-1218.68,0.00056164,120]
[342783245,1732140726243,-500.0,0.00056164,120]
[342783246,1732140726252,-1031.21,0.00056164,120]
[342783247,1732140726263,-746.97,0.00056164,120]
[342783248,1732140726273,-500.0,0.00056164,120]
[342783249,1732140726283,-500.0,0.00056164,120]
[342783250,1732140726293,-1956.13,0.00056164,120]
[342783251,1732140726303,-859.85,0.00056164,120]
[342783252,1732140726313,-1530.02,0.00056164,120]
[342783253,1732140726323,-626.84,0.00056164,120]
[342783254,1732140726332,-925.63,0.00056164,120]
[342783255,1732140726341,-1089.2,0.00056164,120]
[342783256,1732140726351,-500.0,0.00056164,120]
[342783257,1732140726361,-746.22,0.00056164,120]
[342783258,1732140726371,-477.4683302,0.00056164,120]
[342783259,1732140726380,-563.68625286,0.00056164,120]
[342783260,1732140726390,-1753.04,0.00056164,120]
[342783261,1732140726399,-1615.28,0.00056164,120]
[342783262,1732140726409,-500.0,0.00056164,120]
[342783263,1732140726419,-750.0,0.00056164,120]
[342783264,1732140726432,-500.0,0.00056164,120]
[342783265,1732140726442,-2808.16,0.00056164,120]
[342783266,1732140726452,-500.0,0.00056164,120]
[342783267,1732140726462,-628.55,0.00056164,120]
[342783268,1732140726471,-500.0,0.00056164,120]
[342783269,1732140726480,-2720.22,0.00056164,120]
[342783270,1732140726490,-500.0,0.00056164,2]
[342783271,1732140726500,-1040.43,0.00056164,120]
[342783272,1732140726510,-679.38,0.00056164,120]
[342783273,1732140726520,-500.0,0.00056164,120]
[342783274,1732140726529,-1140.69,0.00056164,120]
[342783275,1732140726539,-504.7971131,0.00056164,120]
[342783276,1732140726549,-1233.54,0.00056164,120]
[342783277,1732140726558,-579.85,0.00056164,120]
[342783278,1732140726567,-560.33,0.00056164,120]
[342783279,1732140726577,-1241.7,0.00056164,120]
[342783280,1732140726587,-673.6,0.00056164,120]
[342783281,1732140726596,-500.0,0.00056164,120]
[342783282,1732140726607,-1595.79,0.00056164,120]
[342783283,1732140726616,-538.3584585,0.00056164,120]
[342783284,1732140726626,-500.0,0.00056164,120]
[342783285,1732140726637,-690.2,0.00056164,120]
[342783286,1732140726647,-500.0,0.00056164,120]
[342783287,1732140726656,-614.35,0.00056164,120]
[342783288,1732140726665,-500.0,0.00056164,120]
[342783289,1732140726678,-500.0,0.00056164,120]
[342783290,1732140726688,-1420.27,0.00056164,120]
[342783291,1732140726698,-500.0,0.00056164,120]
[342783292,1732140726708,-151.0,0.00056164,120]
[342783293,1732140726718,-500.0,0.00056164,120]
[342783294,1732140726727,-500.0,0.00056164,120]
[342783295,1732140726737,-500.0,0.00056164,120]
[342783296,1732140726747,-500.0,0.00056164,120]
[342783297,1732140726756,-500.0,0.00056164,120]
[342783298,1732140726766,-500.0,0.00056164,120]
[342783299,1732140726775,-500.0,0.00056164,120]
[342783300,1732140726785,-1747.91,0.00056164,120]
[342783301,1732140726794,-500.0,0.00056164,120]
[342783302,1732140726804,-326.10477,0.00056164,120]
[342783303,1732140726814,-500.0,0.00056164,120]
[342783304,1732140726823,-500.0,0.00056164,120]
[342783305,1732140726833,-1026.85,0.00056164,120]
[342783306,1732140726842,-500.0,0.00056164,120]
[342783307,1732140726852,-326.10477,0.00056164,120]
[342783308,1732140726862,-500.0,0.00056164,120]
[342783309,1732140726872,-500.0,0.00056164,120]
[342783310,1732140726882,-500.0,0.00056164,120]
[342783311,1732140726891,-500.0,0.00056164,120]
[342783312,1732140726901,-1929.2,0.00056164,120]
[342783313,1732140726911,-813.38,0.00056164,120]
[342783314,1732140726921,-1208.59,0.00056164,120]
[342783315,1732140726933,-509.94,0.00056164,120]
[342783316,1732140726942,-500.0,0.00056164,120]
[342783317,1732140726952,-547.23,0.00056164,120]
[342783318,1732140726962,-2243.95,0.00056164,120]
[342783319,1732140726971,-983.72,0.00056164,120]
[342783320,1732140726980,-1133.87,0.00056164,120]
[342783321,1732140726990,-500.0,0.00056164,120]
[342783322,1732140727000,-500.0,0.00056164,120]
[342783323,1732140727009,-500.0,0.00056164,120]
[342783324,1732140727019,-500.0,0.00056164,120]
[342783325,1732140727029,-500.0,0.00056164,120]
[342783326,1732140727038,-500.0,0.00056164,120]
[342783327,1732140727047,-500.0,0.00056164,120]
[342783328,1732140727057,-500.0,0.00056164,120]
[342783329,1732140727067,-500.0,0.00056164,120]
[342783330,1732140727076,-500.0,0.00056164,120]
[342783331,1732140727085,-500.0,0.00056164,120]
[342783332,1732140727095,-500.0,0.00056164,120]
[342783333,1732140727104,-837.29,0.00056164,120]
[342783334,1732140727114,-601.65,0.00056164,120]
[342783335,1732140727124,-151.0,0.00056164,120]
[342783336,1732140727134,-151.0,0.00056164,120]
[342783337,1732140727147,-500.0,0.00056164,120]
[342783338,1732140727157,-500.0,0.00056164,120]
[342783339,1732140727168,-500.0,0.00056164,120]
[342783340,1732140727185,-500.0,0.00056164,120]
[342783341,1732140727195,-261.62430443,0.00056164,120]
[342783342,1732140727205,-1244.02,0.00056164,120]
[342783343,1732140727215,-500.0,0.00056164,120]
[342783344,1732140727224,-500.0,0.00056164,120]
[342783345,1732140727235,-581.48,0.00056164,120]
[342783346,1732140727244,-500.0,0.00056164,120]
[342783347,1732140727255,-500.0,0.00056164,120]
[342783348,1732140727264,-912.77,0.00056164,120]
[342783349,1732140727274,-1640.54,0.00056164,120]
[342783350,1732140727284,-822.59,0.00056164,120]
[342783351,1732140727294,-500.0,0.00056164,120]
[342783352,1732140727304,-500.0,0.00056164,120]
[342783353,1732140727314,-957.41,0.00056164,120]
[342783354,1732140727323,-3305.34,0.00056164,120]
[342783355,1732140727333,-500.0,0.00056164,120]
[342783356,1732140727343,-546.92,0.00056164,120]
[342783357,1732140727353,-500.0,0.00056164,120]
[342783358,1732140727363,-500.0,0.00056164,120]
[342783359,1732140727372,-500.0,0.00056164,120]
[342783360,1732140727382,-1590.28,0.00056164,120]
[342783361,1732140727391,-500.0,0.00056164,120]
[342783362,1732140727400,-500.0,0.00056164,120]
[342783363,1732140727410,-4503.54,0.00056164,120]
[342783364,1732140727419,-2459.56,0.00056164,120]
[342783365,1732140727435,-500.0,0.00056164,120]
[342783366,1732140727444,-5054.97,0.00056164,120]
[342783367,1732140727453,-500.0,0.00056164,120]
[342783368,1732140727463,-503.30340004,0.00056164,120]
[342783369,1732140727473,-500.0,0.00056164,120]
[342783370,1732140727487,-500.0,0.00056164,120]
[342783371,1732140727496,-501.0825537,0.00056164,120]
[342783372,1732140727506,-1237.62,0.00056164,120]
[342783373,1732140727516,-1805.81,0.00056164,120]
[342783374,1732140727526,-1705.69,0.00056164,120]
[342783375,1732140727535,-730.02,0.00056164,120]
[342783376,1732140727546,-500.0,0.00056164,120]
[342783377,1732140727556,-500.0,0.00056164,120]
[342783378,1732140727567,-151.0,0.00056164,120]
[342783379,1732140727578,-556.28,0.00056164,120]
[342783380,1732140727589,-1293.03,0.00056164,120]
[342783381,1732140727599,-735.83,0.00056164,120]
[342783382,1732140727609,-500.0,0.00056164,120]
[342783383,1732140727620,-875.45,0.00056164,120]
[342783384,1732140727630,-500.0,0.00056164,120]
[342783385,1732140727641,-500.0,0.00056164,120]
[342783386,1732140727651,-500.0,0.00056164,120]
[342783387,1732140727661,-2355.16,0.00056164,120]
[342783388,1732140727671,-529.9,0.00056164,120]
[342783389,1732140727684,-1065.14,0.00056164,120]
[342783390,1732140727695,-1626.59,0.00056164,120]
[342783391,1732140727704,-500.0,0.00056164,120]
[342783392,1732140727714,-500.0,0.00056164,120]
[342783393,1732140727723,-500.0,0.00056164,120]
[342783394,1732140727733,-899.71,0.00056164,120]
[342783395,1732140727743,-1000.0,0.00056164,30]
[342783396,1732140727755,-1031.07,0.00056164,120]
[342783397,1732140727764,-500.0,0.00056164,120]
[342783398,1732140727775,-2139.66,0.00056164,120]
[342783399,1732140727786,-500.0,0.00056164,120]
[342783400,1732140727796,-427.95268583,0.00056164,120]
[342783401,1732140727806,-500.0,0.00056164,120]
[342783402,1732140727816,-1746.7,0.00056164,120]
[342783403,1732140727826,-2450.69,0.00056164,120]
[342783404,1732140727836,-525.57,0.00056164,120]
[342783405,1732140727846,-500.0,0.00056164,120]
[342783406,1732140727855,-500.0,0.00056164,120]
[342783407,1732140727866,-1007.82,0.00056164,120]
[342783408,1732140727876,-525.94,0.00056164,120]
[342783409,1732140727886,-500.0,0.00056164,120]
[342783410,1732140727896,-500.0,0.00056164,120]
[342783411,1732140727906,-500.0,0.00056164,120]
[342783412,1732140727916,-800.11,0.00056164,120]
[342783413,1732140727930,-3332.16,0.00056164,120]
[342783414,1732140727939,-500.0,0.00056164,120]
[342783415,1732140727949,-500.0,0.00056164,120]